fUSD/lending_fUSD_20240115
["ID","MTS","AMOUNT","RATE_DAILY","PERIOD"]
[311668954,1705301444422,-300.0,0.000266,9]
[311668955,1705301444431,-600.0,0.000267,9]
[311668956,1705301444440,-872.23182202,0.00026715,2]
[311668957,1705301444450,-1167.1963111,0.00026725,2]
[311668958,1705301444459,-405.72938623,0.00026728,2]
[311668959,1705301444468,-1000.0,0.000268,9]
[311668960,1705301444477,-322.25,0.00026836,2]
[311668961,1705301444486,-15809.8620044,0.00026849,2]
[311668962,1705301444496,-1461.55250826,0.00026849,2]
[311668963,1705301444505,-158.05526152,0.00026849,2]
[311668964,1705301444515,-502.98825693,0.00026849,2]
[311668965,1705301444524,-363.37302531,0.00026849,2]
[311668966,1705301444533,-156.4507304,0.00026849,2]
[311668967,1705301444543,-198.44110461,0.00026849,2]
[311668968,1705301444556,-349.25942919,0.00026849,2]
[311668969,1705301444565,-294.14687268,0.00026849,2]
[311668970,1705301444574,-20.59522455,0.00026849,2]
[311668974,1705301446132,-999.63790966,0.00026849,2]
[311668975,1705301446144,-513.11503667,0.00026849,2]
[311668976,1705301446270,-3593.39693038,0.00026849,2]
[311668977,1705301446284,-1326.5773138,0.00026849,2]
[311668978,1705301446296,-2861.5891611,0.00026849,2]
[311668980,1705301446311,-11893.78915216,0.00026849,2]
[311668983,1705301446320,-1300.0,0.000269,9]
[311668984,1705301446330,-2062.64,0.000269,2]
[311668987,1705301446339,-201.0,0.00026958,8]
[311668988,1705301446349,-500.0,0.00026981,2]
[311668989,1705301446357,-200.0,0.00026981,2]
[311668990,1705301446366,-200.0,0.00026981,2]
[311668991,1705301446376,-370.80806289,0.00026998,2]
[311668992,1705301446385,-155.5219049,0.00026998,2]
[311668993,1705301446394,-723.45,0.00026999,2]
[311668994,1705301446404,-25573.62563193,0.00027,2]
[311668995,1705301446416,-23662.74688521,0.00027,2]
[311668996,1705301446427,-4304.1,0.00027,2]
[311668997,1705301446450,-4846.09090126,0.00027,2]
[311668999,1705301446459,-1400.0,0.00027,3]
[311669001,1705301446470,-508.50114416,0.00027,2]
[311669003,1705301446479,-185.15172777,0.00027,2]
[311669005,1705301446491,-14.84827223,0.00027,2]
[311669007,1705301446501,-461.57911462,0.00027,2]
[311669010,1705301446513,-1840.58896892,0.00027,2]
[311669012,1705301446524,-26255.11500145,0.00027,2]
[311669019,1705301446576,-13782.80688871,0.00027,2]
[311669021,1705301446589,-419.59727266,0.00027,2]
[311669024,1705301446612,-402.40279773,0.00027,2]
[311669027,1705301446623,-25676.83719836,0.00027,2]
[311669029,1705301446631,-150.0,0.00027009,2]
[311669031,1705301446640,-500.0,0.00027122,10]
[311669033,1705301446649,-505.13058694,0.00027122,7]
[311669035,1705301446658,-500.0,0.00027122,2]
[311669037,1705301446667,-151.40115,0.00027148,2]
[311669039,1705301446676,-151.40115,0.00027148,2]
[311669041,1705301446685,-151.40115,0.00027148,2]
[311669043,1705301446694,-151.40115,0.00027148,2]
[311669045,1705301446704,-151.40115,0.00027148,2]
[311669047,1705301446713,-151.40115,0.00027148,2]
[311669049,1705301446722,-181.40115,0.00027148,2]
[311669051,1705301446731,-200.0,0.00027177,2]
[311669053,1705301446739,-800.0,0.00027177,2]
[311669055,1705301446748,-800.0,0.00027178,2]
[311669057,1705301446757,-153.74,0.00027178,2]
[311669059,1705301446767,-586.96,0.00027178,2]
[311669061,1705301446776,-418.99,0.00027178,2]
[311669063,1705301446785,-225.57,0.00027178,2]
[311669065,1705301446794,-418.16,0.00027178,2]
[311669067,1705301446803,-418.16,0.00027178,2]
[311669069,1705301446811,-418.16,0.00027178,2]
[311669071,1705301446821,-812.29,0.00027178,2]
[311669073,1705301446830,-418.16,0.00027178,2]
[311669075,1705301446839,-159.0,0.00027179,2]
[311669077,1705301446847,-151.0,0.00027179,2]
[311669079,1705301446856,-186.45044788,0.00027182,2]
[311669081,1705301446865,-5990.2209,0.00027197,2]
[311669083,1705301446875,-262.7915,0.00027197,2]
[311669084,1705301446884,-15305.939,0.00027197,2]
[311669086,1705301446893,-161.51,0.00027211,2]
[311669088,1705301446904,-620.28373811,0.00027223,2]
[311669090,1705301446913,-846.10044784,0.00027234,3]
[311669092,1705301446922,-151.40115,0.00027248,2]
[311669095,1705301446931,-151.40115,0.00027248,2]
[311669097,1705301446941,-151.40115,0.00027248,2]
[311669099,1705301446950,-151.40115,0.00027248,2]
[311669101,1705301446960,-151.40115,0.00027248,2]
[311669103,1705301446969,-151.40115,0.00027248,2]
[311669105,1705301446978,-151.40115,0.00027248,2]
[311669106,1705301446987,-151.40115,0.00027248,2]
[311669109,1705301446996,-151.40115,0.00027248,2]
[311669111,1705301447006,-151.40115,0.00027248,2]
[311669112,1705301447016,-151.40115,0.00027248,2]
[311669115,1705301447025,-151.40115,0.00027248,2]
[311669117,1705301447035,-151.40115,0.00027248,2]
[311669118,1705301447044,-151.40115,0.00027248,2]
[311669121,1705301447053,-151.40115,0.00027248,2]
[311669123,1705301447062,-151.40115,0.00027248,2]
[311669124,1705301447071,-151.40115,0.00027248,2]
[311669127,1705301447081,-151.40115,0.00027248,2]
[311669128,1705301447090,-151.40115,0.00027248,2]
[311669131,1705301447100,-151.40115,0.00027248,2]
[311669132,1705301447109,-151.40115,0.00027248,2]
[311669134,1705301447118,-234.40115,0.00027248,2]
[311669136,1705301447127,-234.40115,0.00027248,2]
[311669138,1705301447136,-234.40115,0.00027248,2]
[311669140,1705301447145,-234.40115,0.00027248,2]
[311669142,1705301447154,-234.40115,0.00027248,2]
[311669144,1705301447164,-234.40115,0.00027248,2]
[311669146,1705301447173,-234.40115,0.00027248,2]
[311669148,1705301447183,-234.40115,0.00027248,2]
[311669150,1705301447195,-234.40115,0.00027248,2]
[311669152,1705301447204,-234.40115,0.00027248,2]
[311669154,1705301447213,-234.40115,0.00027248,2]
[311669156,1705301447227,-234.40115,0.00027248,2]
[311669158,1705301447236,-234.40115,0.00027248,2]
[311669160,1705301447245,-234.40115,0.00027248,2]
[311669162,1705301447258,-234.40115,0.00027248,2]
[311669164,1705301447268,-234.40115,0.00027248,2]
[311669167,1705301447278,-234.40115,0.00027248,2]
[311669169,1705301447287,-234.40115,0.00027248,2]
[311669171,1705301447298,-234.40115,0.00027248,2]
[311669173,1705301447309,-234.40115,0.00027248,2]
[311669174,1705301447323,-234.40115,0.00027248,2]
[311669177,1705301447333,-234.40115,0.00027248,2]
[311669179,1705301447342,-234.40115,0.00027248,2]
[311669181,1705301447351,-234.40115,0.00027248,2]
[311669183,1705301447360,-234.40115,0.00027248,2]
[311669185,1705301447369,-234.40115,0.00027248,2]
[311669187,1705301447378,-234.40115,0.00027248,2]
[311669188,1705301447388,-234.40115,0.00027248,2]
[311669190,1705301447397,-234.40115,0.00027248,2]
[311669192,1705301447406,-234.40115,0.00027248,2]
[311669195,1705301447416,-234.40115,0.00027248,2]
[311669197,1705301447426,-234.40115,0.00027248,2]
[311669198,1705301447435,-234.40115,0.00027248,2]
[311669201,1705301447444,-234.40115,0.00027248,2]
[311669203,1705301447454,-234.40115,0.00027248,2]
[311669205,1705301447463,-234.40115,0.00027248,2]
[311669207,1705301447472,-234.40115,0.00027248,2]
[311669209,1705301447482,-234.40115,0.00027248,2]
[311669211,1705301447491,-234.40115,0.00027248,2]
[311669213,1705301447500,-234.40115,0.00027248,2]
[311669215,1705301447509,-234.40115,0.00027248,2]
[311669217,1705301447519,-234.40115,0.00027248,2]
[311669219,1705301447528,-234.40115,0.00027248,2]
[311669221,1705301447538,-234.40115,0.00027248,2]
[311669223,1705301447547,-234.40115,0.00027248,2]
[311669225,1705301447556,-1167.1963111,0.00027273,2]
[311669227,1705301447566,-156.31,0.00027274,2]
[311669229,1705301447575,-160.11911365,0.00027295,2]
[311669231,1705301447585,-18406.75634148,0.00027295,2]
[311669233,1705301447594,-909.62559085,0.00027295,2]
[311669235,1705301447603,-232.93795256,0.00027295,2]
[311669237,1705301447612,-475.54631643,0.00027295,2]
[311669239,1705301447622,-155.75181538,0.00027295,2]
[311669241,1705301447631,-209.0,0.00027296,2]
[311669243,1705301447640,-286.43610035,0.00027296,2]
[311669245,1705301447649,-158.61924141,0.00027296,2]
[311669247,1705301447658,-173.66243659,0.00027296,2]
[311669249,1705301447668,-2000.0,0.00027296,3]
[311669251,1705301447677,-5000.0,0.00027296,2]
[311669253,1705301447686,-20000.0,0.00027297,2]
[311669255,1705301447695,-55555.0,0.00027297,2]
[311669257,1705301447704,-250.0,0.00027297,2]
[311669259,1705301447713,-2282.78997356,0.00027297,2]
[311669261,1705301447722,-312.09968732,0.00027297,2]
[311669263,1705301447731,-1968.877406,0.000273,2]
[311669265,1705301447741,-3000.0,0.000273,2]
[311669267,1705301447750,-300.0,0.000273,2]
[311669269,1705301447759,-150.0,0.000273,2]
[311669271,1705301447769,-305.392507,0.000273,2]
[311669274,1705301447779,-300.0,0.000273,2]
[311669276,1705301447788,-3376.31006497,0.00027373,6]
[311669278,1705301447797,-1139.0,0.00027393,2]
[311669279,1705301447806,-273.94855617,0.00027393,2]
[311669282,1705301447816,-526.7690375,0.00027393,2]
[311669283,1705301447825,-300.70973742,0.00027393,2]
[311669285,1705301447835,-313.04528439,0.00027394,2]
[311669288,1705301447844,-131608.2945716,0.00027396,2]
[311669759,1705301517641,1604.6010116,0.00020698,2]
[311669761,1705301539535,1293.0029884,0.00020547,2]
[311669762,1705301594768,220.19070779,0.00020547,2]
[311669763,1705301606543,220.19070779,0.00020547,2]
[311669764,1705301630514,353.90452308,0.00020547,2]
[311669765,1705301634110,856.19338453,0.00020547,2]
[311669766,1705301636011,151.17450142,0.00022,2]
[311669767,1705301644238,201.0,0.00021828,2]
[311669768,1705301656252,673.60440418,0.00020547,2]
[311669771,1705301678223,183.2,0.00021892,2]
[311669772,1705301691036,313.65837567,0.00021918,2]
[311669773,1705301692382,963.89,0.0002186,2]
[311669774,1705301693098,300.0,0.00022016,2]
[311669775,1705301703289,764.1,0.00021872,2]
[311669776,1705301722613,150.93,0.0002187,2]
[311669777,1705301722782,150.93,0.00021999,2]
[311669778,1705301724318,10000.0,0.00021918,2]
[311669779,1705301728413,250.0,0.00021856,2]
[311669780,1705301749678,2705.0,0.00021778,2]
[311669781,1705301757237,150.0,0.00021778,2]
[311669782,1705301769418,843.68,0.00021778,2]
[311669783,1705301773337,23900.0,0.00021767,2]
[311669784,1705301829011,750.0,0.00021789,2]
[311669785,1705301867153,556.8,0.00021774,2]
[311669786,1705301919507,578.16,0.00021774,2]
[311669787,1705301928130,2207.77,0.00021775,2]
[311669788,1705301947714,4340.57,0.00021754,2]
[311669789,1705301951246,3678.43,0.00021755,2]
[311669790,1705301956506,900.74,0.00021778,2]
[311669791,1705301960189,200.0,0.00021728,2]
[311669792,1705301962603,183.0,0.00021728,2]
[311669793,1705301965925,2000.0,0.00021728,2]
[311669794,1705301973809,500.0,0.00021918,2]
[311669795,1705302011090,250.0,0.000205,2]
[311669796,1705302030684,359.2,0.00021918,2]
[311669797,1705302032498,500.0,0.00021718,2]
[311669798,1705302048476,697.51118737,0.00022099,2]
[311669799,1705302050482,361.53414999,0.00022099,2]
[311669800,1705302070657,237.93,0.00019864,2]
[311669801,1705302086113,260.72,0.00021778,2]
[311669802,1705302086582,1428.76,0.00021778,2]
[311669803,1705302090886,14462.05,0.00021778,2]
[311669804,1705302134500,5842.06,0.00021767,2]
[311669805,1705302175134,200.0,0.00021718,2]
[311669806,1705302177629,220.81,0.00021783,2]
[311669807,1705302185764,398.9,0.00021792,2]
[311669808,1705302197030,185.88,0.00022012,2]
[311669809,1705302197259,185.88,0.00022073,2]
[311669810,1705302221766,1019.06,0.00021715,2]
[311669811,1705302231348,587.96,0.00021715,2]
[311669812,1705302243137,250.0,0.00021715,2]
[311669813,1705302246208,23900.0,0.00021715,2]
[311669814,1705302271521,759.73,0.00021714,2]
[311669815,1705302288377,352.06,0.00021999,2]
[311669816,1705302335249,750.0,0.00021711,2]
[311669817,1705302361555,289.08,0.00021711,2]
[311669818,1705302364202,201.0,0.00021949,2]
[311669819,1705302400093,500.0,0.00021918,2]
[311669820,1705302414711,2000.0,0.00021675,2]
[311669821,1705302479563,500.0,0.00021661,2]
[311669822,1705302531058,226.03,0.0001975,2]
[311669823,1705302531260,226.03,0.00022014,2]
[311669824,1705302554082,161.51,0.00021884,2]
[311669825,1705302630049,392.49,0.0002168,2]
[311669834,1705302632038,-164.7287992,0.00022127,2]
[311669836,1705302632047,-407.28623887,0.00022127,2]
[311669839,1705302632060,-290.2249485,0.00022127,2]
[311669841,1705302632069,-150.93,0.00022128,2]
[311669843,1705302632078,-185.88,0.00022133,2]
[311669844,1705302632087,-40.8264852,0.00022194,2]
[311669845,1705302632185,-145.0535148,0.00022194,2]
[311669846,1705302632194,-185.88,0.00022254,2]
[311669847,1705302632203,-150.93,0.00022256,2]
[311669848,1705302632213,-185.88,0.00022314,2]
[311669849,1705302632222,-185.88,0.00022375,2]
[311669850,1705302632231,-150.93,0.00022385,2]
[311669851,1705302632240,-167.61617295,0.000224,2]
[311669852,1705302632250,-499.99,0.000224,2]
[311669853,1705302632260,-863.22,0.000224,2]
[311669854,1705302632268,-381.2,0.000224,2]
[311669855,1705302632278,-200.0,0.000224,8]
[311669856,1705302632288,-185.88,0.00022435,2]
[311669857,1705302632298,-185.88,0.00022495,2]
[311669858,1705302632307,-8452.14552393,0.000225,2]
[311669859,1705302632316,-500.0,0.000225,8]
[311669860,1705302632325,-150.93,0.00022514,2]
[311669861,1705302632335,-599.85,0.00022525,2]
[311669862,1705302632344,-185.88,0.00022556,2]
[311669863,1705302632354,-167.61617295,0.00022567,2]
[311669864,1705302632364,-800.0,0.000226,8]
[311669865,1705302632373,-185.88,0.00022616,2]
[311669866,1705302632382,-150.93,0.00022642,2]
[311669867,1705302632392,-392.49,0.00022658,2]
[311669868,1705302632401,-185.88,0.00022677,2]
[311669869,1705302632410,-1100.0,0.000227,8]
[311669870,1705302632419,-382.53197189,0.0002273,2]
[311669871,1705302632429,-156.05866334,0.00022731,2]
[311669872,1705302632438,-2942.4416,0.00022732,2]
[311669873,1705302632446,-27698.76426111,0.00022732,2]
[311669874,1705302632458,-2088.56680318,0.00022732,2]
[311669875,1705302632538,-1232.00144346,0.00022732,2]
[311669876,1705302632550,-1572.09871997,0.00022732,2]
[311669884,1705302638024,-7417.82187228,0.00022732,2]
[311669885,1705302638033,-167.61617295,0.00022733,2]
[311669886,1705302638042,-185.88,0.00022737,2]
[311669887,1705302638052,-157.0,0.00022766,2]
[311669888,1705302638061,-150.93,0.00022771,2]
[311669889,1705302638071,-185.88,0.00022797,2]
[311669890,1705302638080,-1400.0,0.000228,8]
[311669891,1705302638088,-382.53197186,0.00022815,2]
[311669892,1705302638098,-6614.52721787,0.00022826,2]
[311669893,1705302638107,-301.95215137,0.0002283,2]
[311669894,1705302638115,-485.93276131,0.0002283,2]
[311669895,1705302638125,-327.83918474,0.0002283,2]
[311669896,1705302638134,-285.0397229,0.0002283,2]
[311669897,1705302638143,-1951.74448912,0.0002283,2]
[311669898,1705302638153,-1406.91195512,0.0002283,2]
[311669899,1705302638161,-256.11702221,0.0002283,2]
[311669900,1705302638171,-4731.65760839,0.0002283,2]
[311669901,1705302638181,-386.7354947,0.0002283,2]
[311669902,1705302638202,-583.16971811,0.0002283,2]
[311669903,1705302638211,-473.97561772,0.0002283,2]
[311669904,1705302638221,-156.87479774,0.0002283,2]
[311669905,1705302638231,-155.17336466,0.0002283,2]
[311669906,1705302638241,-2606.18162672,0.0002283,2]
[311669907,1705302638251,-387.50674281,0.0002283,2]
[311669908,1705302638261,-428.44890579,0.00022831,2]
[311669909,1705302638270,-161.52290038,0.00022831,2]
[311669910,1705302638280,-305.23481685,0.00022831,2]
[311669911,1705302638289,-288.29485518,0.00022831,2]
[311669912,1705302638299,-93766.8319017,0.00022832,2]
[311669913,1705302638309,-185.88,0.00022858,2]
[311669914,1705302638318,-7716.02099882,0.0002288,2]
[311669915,1705302638328,-1379.97745365,0.00022888,2]
[311669916,1705302638338,-382.53197186,0.00022899,2]
[311669917,1705302638347,-150.93,0.000229,2]
[311669918,1705302638357,-16194.4605296,0.000229,2]
[311669919,1705302638367,-11743.0146,0.000229,2]
[311669920,1705302638377,-858.913,0.000229,2]
[311669921,1705302638386,-8601.4084,0.000229,2]
[311669922,1705302638396,-167.61617295,0.000229,2]
[311669923,1705302638405,-177.78124712,0.000229,2]
[311669924,1705302638415,-313.61963156,0.000229,6]
[311669925,1705302638425,-368.3885822,0.000229,2]
[311669926,1705302638434,-286.47185989,0.000229,2]
[311669927,1705302638444,-1576.79485832,0.000229,2]
[311669928,1705302638454,-5278.43256557,0.000229,2]
[311669929,1705302638464,-282.69873682,0.000229,2]
[311669930,1705302638473,-1338.17444968,0.000229,2]
[311669931,1705302638483,-200.0,0.000229,8]
[311669932,1705302638493,-185.88,0.00022918,2]
[311669933,1705302638503,-185.88,0.00022979,2]
[311669934,1705302638513,-85123.89816654,0.0002298,2]
[311669935,1705302638523,-159.18,0.00022988,2]
[311669936,1705302638533,-160.54264898,0.00022998,2]
[311669937,1705302638542,-171.26660101,0.00022998,2]
[311669938,1705302638552,-286.8861033,0.00022998,2]
[311669939,1705302638562,-341.78817649,0.00022999,2]
[311669940,1705302638571,-155.0,0.00022999,2]
[311669941,1705302638581,-9146.50660108,0.00022999,2]
[311669942,1705302638590,-581.18512785,0.00022999,2]
[311669943,1705302638599,-229.20918251,0.00022999,2]
[311669944,1705302638609,-332813.20477909,0.00022999,2]
[311669945,1705302638618,-300.0,0.00022999,2]
[311669946,1705302638628,-300.0,0.00022999,2]
[311669947,1705302638638,-300.0,0.00022999,2]
[311669948,1705302638647,-1745952.36642296,0.00022999,2]
[311669949,1705302638656,-2547598.38427667,0.00023,2]
[311669950,1705302638667,-504274.356777,0.00023,2]
[311669951,1705302638680,-120887.00688694,0.00023,2]
[311669952,1705302638696,-130281.94517922,0.00023,2]
[311669953,1705302638708,-427.79251218,0.00023,2]
[311669954,1705302638792,-45984.7548125,0.00023,2]
[311669955,1705302638805,-523161.52680872,0.00023,2]
[311669956,1705302638817,-704.13939175,0.00023,2]
[311669957,1705302638829,-10001.99998787,0.00023,2]
[311669958,1705302638860,-350.20110314,0.00023,2]
[311669959,1705302638872,-876.30395543,0.00023,2]
[311669960,1705302638884,-502.61833434,0.00023,2]
[311669963,1705302640519,-7135.8486228,0.00023,2]
[311669964,1705302640531,-1543.32883663,0.00023,2]
[311669965,1705302640542,-1572.90815554,0.00023,2]
[311669966,1705302641120,-211683.59668439,0.00023,2]
[311669967,1705302641233,-1855.75956158,0.00023,2]
[311669975,1705302643816,-592.53143083,0.00023,2]
[311669977,1705302643827,-4278.56830081,0.00023,2]
[311669978,1705302643875,-3956.93786797,0.00023,2]
[311669979,1705302643932,-1374.79618899,0.00023,2]
[311669980,1705302643945,-1051.547,0.00023,2]
[311669981,1705302643989,-500.0,0.00023,2]
[311669982,1705302644000,-373.45767937,0.00023,2]
[311669983,1705302644023,-384851.98394283,0.00023,2]
[311669984,1705302644034,-6243.90894464,0.00023,2]
[311669985,1705302644056,-471.06540919,0.00023,2]
[311669986,1705302644104,-523.7000001,0.00023,2]
[311669987,1705302644116,-8539.0,0.00023,2]
[311669988,1705302644127,-24163.79575735,0.00023,2]
[311669990,1705302646182,-164.7287992,0.00022999,2]
[311669991,1705302646192,-4938.39400085,0.00023,2]
[311669992,1705302646240,-278.0072,0.00023,2]
[311669993,1705302646251,-972.44269312,0.00023,2]
[311669995,1705302646527,-33988.76063593,0.00023,2]
[311669996,1705302646552,-932.14062538,0.00023,2]
[311669997,1705302646654,-136.98200927,0.00023,2]
[311669998,1705302647199,-83950.84169222,0.00023,2]
[311670012,1705302826002,-155.0,0.00022759,2]
[311670013,1705302826022,-417.89305795,0.0002276,2]
[311670014,1705302826042,-164.7287992,0.00022761,2]
[311670015,1705302826066,-77.37814285,0.00022762,2]
[311670016,1705303042862,272.92,0.00020418,2]
[311670017,1705303083514,236.63247348,0.000301,120]
[311670018,1705303169338,607.79,0.00022088,2]
[311670019,1705303214884,250.0,0.00022051,2]
[311670020,1705303323601,177.75042243,0.00022099,2]
[311670021,1705303328957,164.7287992,0.00022099,2]
[311670023,1705303425979,164.7287992,0.00022099,2]
[311670024,1705303444317,201.0,0.00021187,2]
[311670025,1705303455029,2000.0,0.00021906,2]
[311670026,1705303502473,164.7287992,0.00022099,2]
[311670027,1705303509258,259.27,0.00020031,2]
[311670028,1705303510753,250.0,0.000205,2]
[311670029,1705303560122,387.11,0.00021963,2]
[311670030,1705303648263,23900.0,0.00021901,2]
[311670031,1705303654154,513.76,0.00021933,2]
[311670032,1705303756160,289.08,0.000219,2]
[311670034,1705303813047,153.14729601,0.0002202,2]
[311670042,1705303832205,-0.73806548,0.000221,2]
[311670043,1705303832319,-394.21778223,0.000221,2]
[311670044,1705303832329,-5376.35360043,0.00022106,2]
[311670045,1705303832341,-315.66860655,0.00022106,2]
[311670046,1705303832350,-159.18,0.0002212,2]
[311670047,1705303832359,-151.22,0.00022124,2]
[311670048,1705303832369,-136.9442313,0.00022295,2]
[311670049,1705303832388,-122.3257687,0.00022295,2]
[311670050,1705303832397,-151.22,0.00022316,2]
[311670051,1705303832407,-202.4285333,0.00022382,2]
[311670052,1705303832419,-986.00408546,0.00022382,2]
[311670053,1705303832428,-151.22,0.00022508,2]
[311670054,1705303832438,-150.0,0.0002251,2]
[311670055,1705303832447,-1188.43261876,0.00022578,2]
[311670056,1705303832456,-112.95036303,0.00022579,2]
[311670057,1705303832478,-483.33963697,0.00022579,2]
[311670058,1705303832487,-499.99,0.00022579,2]
[311670059,1705303832498,-159.66852931,0.00022579,2]
[311670060,1705303832510,-721.06586441,0.00022579,2]
[311670062,1705303832523,-357.46371413,0.00022579,2]
[311670065,1705303832547,-834.26875927,0.00022579,2]
[311670074,1705303838749,-1299.13097435,0.00022579,2]
[311670075,1705303838773,-374.16160013,0.00022579,2]
[311670076,1705303838881,-883.7405584,0.00022579,2]
[311670077,1705303838890,-83.60650054,0.00022582,2]
[311670078,1705303838902,-66.86118032,0.00022582,2]
[311670079,1705303838911,-159.06,0.00022599,2]
[311670080,1705303838920,-3739.21,0.00022599,2]
[311670081,1705303838930,-201.0,0.00022613,2]
[311670082,1705303838939,-1207.4802719,0.000227,2]
[311670083,1705303838949,-431.67022248,0.000227,2]
[311670084,1705303838958,-151.22,0.000227,2]
[311670085,1705303838967,-286.52776858,0.00022765,2]
[311670086,1705303838977,-3346.02220297,0.00022766,2]
[311670087,1705303838986,-23377.5606,0.000228,2]
[311670088,1705303838995,-3839.8329,0.000228,2]
[311670089,1705303839005,-2557.5931,0.000228,2]
[311670090,1705303839014,-81522.96864069,0.000228,2]
[311670091,1705303839027,-130281.94517922,0.000228,2]
[311670092,1705303839060,-23487.75721905,0.000228,2]
[311670093,1705303839072,-30941.39495468,0.000228,2]
[311670094,1705303840845,-1060.74484789,0.000228,2]
[311670096,1705303841728,-343.63380356,0.000228,2]
[311670097,1705303843832,-371.32182864,0.000228,2]
[311670098,1705303843844,-1590.32321476,0.000228,2]
[311670099,1705303843856,-275.16935946,0.000228,2]
[311670100,1705303843945,-9553.51979933,0.000228,2]
[311670101,1705303843957,-8418.64566146,0.000228,2]
[311670102,1705303843969,-97517.86249126,0.000228,2]
[311670103,1705303843979,-158.0,0.000228,2]
[311670104,1705303843988,-151.22,0.00022892,2]
[311670105,1705303843997,-232.90118502,0.00022898,2]
[311670106,1705303844007,-188.4518923,0.00022899,2]
[311670107,1705303844017,-69703.6078,0.000229,2]
[311670108,1705303844029,-62229.8911,0.000229,2]
[311670109,1705303844043,-39797.5924,0.000229,2]
[311670110,1705303844052,-747.89331272,0.000229,2]
[311670111,1705303844061,-747.89331272,0.000229,2]
[311670112,1705303844070,-387.11,0.00022942,2]
[311670113,1705303844079,-156.52141989,0.00022998,2]
[311670114,1705303844089,-353.39032026,0.00022998,2]
[311670115,1705303844098,-544.65557773,0.00022998,2]
[311670116,1705303844107,-1045.30643559,0.00022998,2]
[311670117,1705303844117,-214.52849339,0.00022998,2]
[311670118,1705303844129,-850.85922498,0.00022998,2]
[311670119,1705303844139,-193.45390232,0.00022998,2]
[311670120,1705303844149,-155.32990661,0.00022998,2]
[311670121,1705303844158,-267.82291983,0.00022998,2]
[311670122,1705303844169,-295.236981,0.00022998,2]
[311670123,1705303844179,-237976.41346017,0.00023,2]
[311670124,1705303844188,-2000.0,0.00023,2]
[311670125,1705303844198,-200.0,0.00023,2]
[311670126,1705303844207,-150.0,0.00023,2]
[311670127,1705303844217,-150.93,0.00023028,2]
[311670128,1705303844226,-151.22,0.00023084,2]
[311670129,1705303844236,-1188.43261876,0.00023118,2]
[311670131,1705303844246,-150.93,0.00023157,2]
[311670133,1705303844255,-159.18,0.0002316,2]
[311670135,1705303844265,-174.24,0.00023178,2]
[311670136,1705303844275,-167.08,0.00023194,2]
[311670137,1705303844285,-164.8,0.0002325,2]
[311670139,1705303844295,-150.61,0.00023275,2]
[311670140,1705303844304,-151.22,0.00023276,2]
[311670142,1705303844313,-150.93,0.00023286,2]
[311670144,1705303844323,-1014.17843435,0.00023288,2]
[311670147,1705303844333,-1014.17843435,0.00023288,2]
[311670149,1705303844346,-1014.17843435,0.00023288,2]
[311670151,1705303844356,-1014.17843435,0.00023288,2]
[311670152,1705303844366,-1014.17843435,0.00023288,2]
[311670153,1705303844376,-455.8407121,0.00023288,2]
[311670154,1705303844385,-1014.17843435,0.00023288,2]
[311670155,1705303844395,-1014.17843435,0.00023288,2]
[311670156,1705303844404,-1014.17843435,0.00023288,2]
[311670157,1705303844414,-1014.17843435,0.00023288,2]
[311670158,1705303844424,-433.52828756,0.00023288,2]
[311670159,1705303844433,-1014.17843435,0.00023288,2]
[311670160,1705303844443,-1014.17843435,0.00023288,2]